bitfinex-derivatives/quotes_ETHF0:USTF0_20250321
["timestamp","ask_amount","ask_price","bid_price","bid_amount"]
[1742524007224,0.80452,1989.9,1989.8,1.3697]
[1742524007524,4.09152,1989.9,1989.8,40.8]
[1742524008222,4.79202,1989.9,1989.8,40.8]
[1742524016027,1.3962,1990.0,1989.8,40.8]
[1742524016222,2.20068,1990.0,1989.9,2.73192]
[1742524016427,5.48068,1990.0,1989.9,2.73192]
[1742524016931,0.80443,1990.2,1989.9,45.9352]
[1742524017135,5.46203,1990.2,1990.1,0.80441]
[1742524017738,5.46203,1990.2,1990.1,42.30951]
[1742524018738,2.18003,1990.2,1990.1,42.30951]
[1742524019034,5.46103,1990.2,1990.1,41.5051]
[1742524019636,5.46103,1990.2,1990.1,42.16103021]
[1742524020441,5.46103,1990.2,1990.1,0.65593021]
[1742524020740,8.66883,1990.2,1990.1,0.65593021]
[1742524021237,2.01117,1990.1,1989.7,3.21534394]
[1742524021440,0.80456,1989.8,1989.7,4.57374394]
[1742524021634,4.08756,1989.8,1989.7,4.57374394]
[1742524022734,4.08756,1989.8,1989.7,1.36594394]
[1742524023430,7.29536,1989.8,1989.7,0.00754394]
[1742524027639,7.29536,1989.8,1989.7,1.36544394]
[1742524028640,4.08356,1989.8,1989.7,1.36544394]
[1742524028841,3.28,1989.8,1989.7,2.17001394]
[1742524029242,3.28,1989.8,1989.7,2.85606297]
[1742524029433,2.2171,1989.8,1989.7,44.31200721]
[1742524029740,3.281,1990.1,1990.0,0.80448]
[1742524030330,4.08544,1990.1,1990.0,1.46042424]
[1742524030744,4.08544,1990.1,1990.0,0.65594424]
[1742524031244,4.08544,1990.1,1990.0,2.85872424]
[1742524031739,3.281,1990.1,1990.0,2.85872424]
[1742524032742,3.281,1990.1,1990.0,3.53252424]
[1742524032939,4.08544,1990.1,1990.0,3.53252424]
[1742524033143,3.281,1990.1,1990.0,3.53252424]
[1742524033535,4.08544,1990.1,1990.0,3.53252424]
[1742524035246,3.281,1990.1,1990.0,4.21884826]
[1742524035543,3.281,1990.1,1990.0,4.2187932]
[1742524036748,3.281,1990.1,1990.0,3.53252424]
[1742524037249,4.08544,1990.1,1990.0,3.53252424]
[1742524037547,4.08544,1990.1,1990.0,2.87658]
[1742524037844,4.08544,1990.1,1990.0,3.53265874]
[1742524038246,3.281,1990.1,1990.0,3.53265874]
[1742524038647,1.3055,1990.3,1990.2,0.8044]
[1742524038648,2.10989,1990.3,1990.2,0.8044]
[1742524038850,5.38289,1990.3,1990.2,0.8044]
[1742524039043,0.8044,1990.2,1990.1,2.20841]
[1742524039442,2.1602,1990.2,1990.1,1.404]
[1742524039644,2.8646,1990.2,1990.1,42.204]
[1742524041652,2.8646,1990.2,1990.1,1.404]
[1742524042053,0.80444,1990.1,1990.0,0.80447]
[1742524042257,5.44854,1990.1,1990.0,42.92357]
[1742524043345,4.6441,1990.1,1990.0,42.92357]
[1742524043850,4.6441,1990.1,1990.0,43.57950568]
[1742524045261,0.80438,1990.3,1990.2,0.80439]
[1742524045458,1.3839,1990.3,1990.1,1.389]
[1742524045758,5.51229,1990.3,1990.2,1.46033665]
[1742524046346,5.51229,1990.3,1990.2,2.86593665]
[1742524046546,5.51229,1990.3,1990.2,2.06153665]
[1742524046746,5.51229,1990.3,1990.2,0.65593665]
[1742524047450,5.51229,1990.3,1990.2,2.86593665]
[1742524047847,5.51229,1990.3,1990.2,1.4056]
[1742524048856,0.8044,1990.2,1990.1,0.80442]
[1742524049049,2.0945,1990.2,1990.1,2.21002]
[1742524049250,2.0945,1990.2,1990.1,1.4056]
[1742524049450,2.0945,1990.2,1990.1,2.21004]
[1742524049650,2.0945,1990.2,1990.1,2.86598211]
[1742524050052,2.0945,1990.2,1990.1,2.21004]
[1742524051058,2.0945,1990.2,1990.1,1.4056]
[1742524052155,2.0945,1990.2,1990.1,2.21004]
[1742524053058,2.0945,1990.2,1990.1,2.86607682]
[1742524053664,2.0945,1990.2,1990.1,0.65603682]
[1742524053963,5.3023,1990.2,1990.1,0.65603682]
[1742524054459,0.80456,1989.8,1989.7,4.56034394]
[1742524054653,4.11756,1989.8,1989.7,4.56034394]
[1742524054963,4.11756,1989.8,1989.7,46.01679581]
[1742524055365,6.12066,1989.8,1989.7,46.01679581]
[1742524056263,6.12066,1989.8,1989.7,41.46399581]
[1742524057057,6.12066,1989.8,1989.7,40.80754394]
[1742524057455,4.6776,1989.8,1989.7,43.00394394]
[1742524058254,4.6776,1989.8,1989.7,43.66069783]
[1742524058962,5.48216,1989.8,1989.7,43.66069783]
[1742524059564,4.6776,1989.8,1989.7,43.66069783]
[1742524059768,5.48216,1989.8,1989.7,42.85609783]
[1742524059962,5.48216,1989.8,1989.7,41.46429783]
[1742524061964,5.48216,1989.8,1989.7,40.80754394]
[1742524062464,5.48216,1989.8,1989.7,0.00754394]
[1742524062867,8.68996,1989.8,1989.7,0.00754394]
[1742524076978,8.68996,1989.8,1989.7,1.30974394]
[1742524081175,8.68996,1989.8,1989.7,0.00754394]
[1742524081971,8.77762624,1989.8,1989.7,0.00754394]
[1742524082176,8.77762628,1989.8,1989.7,0.00754394]
[1742524083984,8.77762524,1989.8,1989.7,0.00754394]
[1742524085187,8.77762527,1989.8,1989.7,0.00754394]
[1742524085886,8.77762528,1989.8,1989.7,0.00754394]
[1742524088485,8.68996,1989.8,1989.7,0.00754394]
[1742524088792,8.77761965,1989.8,1989.7,0.00754394]
[1742524089082,8.77761962,1989.8,1989.7,0.00754394]
[1742524089688,8.77761962,1989.8,1989.5,0.6813]
[1742524089689,0.80464,1989.6,1989.5,0.6813]
[1742524089877,7.29144,1989.6,1989.5,0.6813]
[1742524090377,8.61794,1989.6,1989.5,0.6813]
[1742524090877,0.80468,1989.5,1989.4,1.30544394]
[1742524091080,2.13118,1989.5,1989.4,1.30544394]
[1742524091389,2.13118,1989.5,1989.4,1.96326721]
[1742524094289,0.80468,1989.5,1989.4,1.96326721]
[1742524094489,0.80468,1989.5,1989.4,2.65148282]
[1742524095687,0.80468,1989.5,1989.4,2.65148701]
[1742524097591,3.273,1989.5,1989.4,3.45620701]
[1742524097787,0.80468,1989.5,1989.4,3.45620701]
[1742524098187,0.00754394,1989.7,1989.6,0.80464]
[1742524098384,0.81214394,1989.7,1989.6,3.8960198]
[1742524098585,0.81214394,1989.7,1989.6,5.96614307]
[1742524098780,0.81214394,1989.7,1989.6,2.75834307]
[1742524098984,2.18424394,1989.7,1989.6,2.07012327]
[1742524099189,2.86474394,1989.7,1989.6,2.07012327]
[1742524100387,2.86474394,1989.7,1989.6,0.65782327]
[1742524100998,0.80464,1989.6,1989.5,1.4123]
[1742524101293,8.64214,1989.6,1989.5,1.4123]
[1742524101800,8.64214,1989.6,1989.5,2.07001412]
[1742524102485,8.64214,1989.6,1989.5,1.4123]
[1742524103597,8.64214,1989.6,1989.5,42.2123]
[1742524107199,0.80468,1989.5,1989.4,0.00754394]
[1742524107497,2.16518,1989.5,1989.4,1.37454394]
[1742524107692,2.16518,1989.5,1989.4,42.17454394]
[1742524107893,2.16518,1989.5,1989.4,1.37454394]
[1742524111292,5.37298,1989.5,1989.4,1.37454394]
[1742524116603,6.07298,1989.5,1989.4,0.00754394]
[1742524117694,6.07298,1989.5,1989.4,1.41364394]
[1742524123902,5.37298,1989.5,1989.4,1.41364394]
[1742524124206,5.37298,1989.5,1989.4,2.09744394]
[1742524124605,5.37298,1989.5,1989.4,1.41364394]
[1742524133707,5.37298,1989.5,1989.4,0.00754394]
[1742524135610,5.37298,1989.5,1989.4,1.35254394]
[1742524140619,5.37298,1989.5,1989.4,0.00754394]
[1742524141015,4.5683,1989.5,1988.8,3.2078]
[1742524141221,4.01269,1989.0,1988.9,2.68308268]
[1742524141518,4.04089,1989.0,1988.9,1.9942]
[1742524141714,0.80501,1988.7,1988.6,0.6506]
[1742524141911,0.80501,1988.7,1988.6,3.33309287]
[1742524142323,2.08121,1988.7,1988.6,3.33309287]
[1742524142520,0.80501,1988.7,1988.6,3.33309287]
[1742524142719,5.3192,1988.8,1988.6,4.13812287]
[1742524143025,5.3192,1988.8,1988.7,2.02519287]
[1742524143824,5.3192,1988.8,1988.7,2.83020287]
[1742524144023,4.043,1988.8,1988.7,2.02519287]
[1742524145923,4.043,1988.8,1988.7,2.02426403]
[1742524147723,4.043,1988.8,1988.7,2.02406684]
[1742524149322,0.805,1988.8,1988.7,5.23186684]
[1742524149529,4.03596,1988.9,1988.8,0.80494]
[1742524149826,4.03796,1988.9,1988.8,2.87793684]
[1742524150328,2.01192,1989.3,1989.0,0.80489]
[1742524150526,0.80488,1989.1,1989.0,4.01269]
[1742524150829,0.80488,1989.1,1989.0,4.69965479]
[1742524151131,4.04084,1989.2,1989.1,0.80485]
[1742524151623,4.04084,1989.2,1989.1,1.49181926]
[1742524151830,4.04084,1989.2,1989.1,1.49181566]
[1742524153829,4.04084,1989.2,1989.1,1.4918486]
[1742524156423,3.236,1989.2,1989.1,1.4918486]
[1742524156624,4.04081,1989.2,1989.1,1.4918486]
[1742524158135,4.04081,1989.2,1989.1,1.49188285]
[1742524158827,3.236,1989.2,1989.1,1.49188285]
[1742524159433,2.1791,1989.3,1989.2,0.80481]
[1742524159734,5.4081,1989.3,1989.2,1.49184285]
[1742524160526,5.4081,1989.3,1989.2,0.68703285]
[1742524161832,0.80481,1989.2,1989.1,0.80482]
[1742524162037,2.11611,1989.2,1989.1,1.49177205]
[1742524162227,1.3113,1989.2,1989.1,1.49177205]
[1742524163333,2.11611,1989.2,1989.1,1.49177205]
[1742524163635,2.11611,1989.2,1989.1,0.80482]
[1742524163933,2.11611,1989.2,1989.1,1.49172862]
[1742524165637,2.11611,1989.2,1989.1,2.17762862]
[1742524165939,2.11611,1989.2,1989.1,3.51372862]
[1742524166129,1.3113,1989.2,1989.1,3.51372862]
[1742524166930,2.11611,1989.2,1989.1,3.51372862]
[1742524167628,2.11611,1989.2,1989.1,2.82682]
[1742524167841,2.11611,1989.2,1989.1,3.51362166]
[1742524168031,2.11611,1989.2,1989.1,4.21352166]
[1742524170841,2.11611,1989.2,1989.1,3.52672]
[1742524172444,0.80474,1989.5,1989.4,0.80472]
[1742524172741,2.10384,1989.5,1989.4,0.80472]
[1742524173742,3.50694,1989.5,1989.4,0.80472]
[1742524174242,0.80472,1989.4,1989.3,0.80476]
[1742524174441,0.80476,1989.3,1989.2,5.38169]
[1742524174742,0.80476,1989.3,1989.2,5.26393574]
[1742524174935,0.80476,1989.3,1989.2,3.89483574]
[1742524175445,2.15236,1989.3,1989.2,3.89498594]
[1742524177440,2.15236,1989.3,1989.2,3.2078]
[1742524177652,2.15236,1989.3,1989.2,3.89532636]
[1742524177847,2.15236,1989.3,1989.2,4.70013636]
[1742524178047,2.15236,1989.3,1989.2,3.89532636]
[1742524178848,2.15236,1989.3,1989.2,4.70013636]
[1742524179043,2.15236,1989.3,1989.2,5.99293636]
[1742524179542,2.15236,1989.3,1989.2,5.99352362]
[1742524181249,2.15236,1989.3,1989.2,5.99386435]
[1742524181451,2.15236,1989.3,1989.2,5.99386451]
[1742524183458,2.15236,1989.3,1989.2,5.30541]
[1742524183653,2.15236,1989.3,1989.2,5.18913306]
[1742524183859,2.15236,1989.3,1989.2,3.89633306]
[1742524186460,2.15236,1989.3,1989.2,5.29153306]
[1742524186659,2.15236,1989.3,1989.2,3.89633306]
[1742524187357,2.15236,1989.3,1989.2,0.68853306]
[1742524187658,0.80485,1989.1,1989.0,44.0078]
[1742524187864,0.80485,1989.1,1989.0,44.6965792]
[1742524188159,0.80485,1989.1,1989.0,41.4887792]
[1742524188350,2.13115,1989.1,1989.0,40.8]
[1742524189155,0.80501,1988.7,1988.6,1.50691]
[1742524189357,0.80501,1988.7,1988.6,2.78511561]
[1742524189856,2.09351,1988.7,1988.6,43.58511561]
[1742524190655,2.09351,1988.7,1988.6,41.48801561]
[1742524191261,2.09351,1988.7,1988.6,40.8]
[1742524199267,2.09351,1988.7,1988.6,42.1184]
[1742524199671,2.09351,1988.7,1988.6,42.7608]
[1742524199869,3.2078,1989.0,1988.6,42.7608]
[1742524200176,4.02494,1988.9,1988.8,0.80497]
[1742524200367,4.02494,1988.9,1988.8,1.3184]
[1742524200569,5.43674,1988.9,1988.8,1.3184]
[1742524200769,2.21674,1988.9,1988.8,42.92337]
[1742524200964,0.80494,1988.9,1988.8,42.92337]
[1742524201173,46.485,1989.1,1988.8,45.3262]
[1742524201373,50.51085,1989.1,1989.0,0.80489]
[1742524201571,4.02585,1989.1,1989.0,0.80489]
[1742524201774,4.02585,1989.1,1989.0,2.92349]
[1742524202172,0.80485,1989.1,1989.0,2.92349]
[1742524202869,0.80485,1989.1,1989.0,43.72349]
[1742524203074,0.80485,1989.1,1989.0,44.4022139]
[1742524203279,5.37294,1989.2,1989.1,0.80485]
[1742524203479,5.37294,1989.2,1989.1,2.21985]
[1742524203978,2.15094,1989.2,1989.1,2.21985]
[1742524204179,0.80484,1989.2,1989.1,2.21985]
[1742524205974,0.80484,1989.2,1989.1,1.415]
[1742524206176,2.21884,1989.2,1989.1,2.21985]
[1742524206381,2.21884,1989.2,1989.1,1.415]
[1742524206886,2.21884,1989.2,1989.1,2.21985]
[1742524210579,1.414,1989.2,1989.1,2.21985]
[1742524212183,1.414,1989.2,1989.1,2.89870886]
[1742524212784,1.414,1989.2,1989.1,2.89870979]
[1742524213180,1.414,1989.2,1989.1,2.21985]
[1742524213387,1.414,1989.2,1989.0,44.7114]
[1742524213388,0.80485,1989.1,1989.0,40.8]
[1742524213586,0.80485,1989.1,1989.0,42.1239]
[1742524213587,4.71205,1989.1,1989.0,42.1239]
[1742524214090,6.05545,1989.1,1989.0,42.1239]
[1742524214589,6.05545,1989.1,1989.0,42.92879]
[1742524214983,6.05545,1989.1,1989.0,2.12879]
[1742524215588,6.05545,1989.1,1989.0,2.78069]
[1742524215789,6.05545,1989.1,1989.0,1.9758]
[1742524215985,6.05545,1989.1,1989.0,40.8]
[1742524216185,0.80501,1988.7,1988.6,3.2078]
[1742524216386,4.02501,1988.7,1988.6,3.2078]
[1742524216990,5.33871,1988.7,1988.6,3.2078]
[1742524217196,5.33871,1988.7,1988.6,44.0078]
[1742524217692,5.33871,1988.7,1988.6,38.69917513]
[1742524218784,0.80505,1988.6,1988.5,2.22521394]
[1742524218987,2.11875,1988.6,1988.5,1.42014394]
[1742524219692,2.11875,1988.6,1988.5,42.22014394]
[1742524221990,5.32655,1988.6,1988.5,40.80754394]
[1742524222401,5.32655,1988.6,1988.5,0.00754394]
[1742524222994,5.32655,1988.6,1988.5,40.80754394]
[1742524223492,5.32655,1988.6,1988.5,0.00754394]
[1742524223892,5.32655,1988.6,1988.5,40.80754394]
[1742524226397,5.32655,1988.6,1988.5,0.00754394]
[1742524226794,5.32655,1988.6,1988.5,40.80754394]
[1742524230203,4.5215,1988.6,1988.5,41.61263394]
[1742524230403,4.5215,1988.6,1988.5,41.47254394]
[1742524230404,5.32655,1988.6,1988.5,41.47254394]
[1742524230903,5.32655,1988.6,1988.5,42.86544394]
[1742524231195,5.32655,1988.6,1988.5,43.67053394]
[1742524231402,8.54755,1988.6,1988.5,42.86544394]
[1742524231798,8.54755,1988.6,1988.5,43.67053394]
[1742524234306,8.54755,1988.6,1988.5,42.86544394]
[1742524234809,8.54755,1988.6,1988.5,40.80754394]
[1742524240218,8.54755,1988.6,1988.5,42.22234394]
[1742524241713,8.54755,1988.6,1988.5,40.80754394]
[1742524241915,8.54755,1988.6,1988.5,0.00754394]
[1742524243807,11.04755,1988.6,1988.5,0.00754394]
[1742524244315,0.80521,1988.2,1988.1,40.8]
[1742524244617,7.23401,1988.2,1988.1,40.8]
[1742524245009,0.80525,1988.1,1988.0,2.0637]
[1742524245207,2.78595,1988.1,1988.0,2.0637]
[1742524245408,2.78595,1988.1,1988.0,40.8]
[1742524245913,0.80529,1988.0,1987.9,0.00754394]
[1742524246114,8.55069,1988.0,1987.9,1.39204394]
[1742524246509,8.55069,1988.0,1987.9,42.19204394]
[1742524261720,8.55069,1988.0,1987.9,1.39204394]
[1742524263022,3.2078,1988.0,1987.9,2.19737394]
[1742524263328,3.22854394,1988.2,1988.1,0.80525]
[1742524263830,4.02614,1988.4,1988.3,0.80517]
[1742524264039,3.221,1988.4,1988.3,0.80517]
[1742524264727,4.02613,1988.4,1988.3,0.80517]
[1742524267031,4.02613,1988.4,1988.3,1.46227]
[1742524267727,3.221,1988.4,1988.3,1.46227]
[1742524268831,4.4981,1988.4,1988.3,1.46227]
[1742524269137,5.30323,1988.4,1988.3,1.46227]
[1742524270131,4.4981,1988.4,1988.3,1.46227]
[1742524270732,5.30323,1988.4,1988.3,1.46227]
[1742524270927,5.30323,1988.4,1988.3,0.6571]
[1742524271332,5.30323,1988.4,1988.3,1.9852]
[1742524277230,4.4981,1988.4,1988.1,40.8]
[1742524277432,0.80521,1988.2,1988.1,40.8]
[1742524277729,4.02621,1988.2,1988.1,40.8]
[1742524278134,4.02621,1988.2,1988.1,41.4937]
[1742524278642,5.39261,1988.2,1988.1,42.7978]
[1742524279133,5.39261,1988.2,1988.1,43.60305]
[1742524279535,5.39261,1988.2,1988.1,42.7978]
[1742524280131,5.39261,1988.2,1988.1,43.60305]
[1742524292844,4.5874,1988.2,1988.1,43.60305]
[1742524293051,4.67874394,1988.5,1988.4,0.80513]
[1742524293251,7.89874394,1988.5,1988.4,0.80513]
[1742524293450,0.80513,1988.4,1988.3,1.47984]
[1742524294143,4.02513,1988.4,1988.3,1.47984]
[1742524294343,5.32503,1988.4,1988.3,1.47984]
[1742524295748,5.98753,1988.4,1988.3,1.47984]
[1742524296048,5.98753,1988.4,1988.3,0.6747]
[1742524296349,5.98753,1988.4,1988.3,1.47987]
[1742524296849,5.98753,1988.4,1988.3,0.80517]
[1742524297747,0.80517,1988.3,1988.2,2.18728]
[1742524297946,2.19207,1988.3,1988.2,2.18728]
[1742524300745,2.19207,1988.3,1988.2,1.3821]
[1742524300945,0.80521,1988.2,1988.1,40.8]
[1742524301144,6.07971,1988.2,1988.1,40.8]
[1742524305152,0.80529,1988.0,1987.9,0.00754394]
[1742524305352,7.23309,1988.0,1987.9,0.00754394]
[1742524305554,7.23309,1988.0,1987.9,40.80754394]
[1742524305748,7.88679,1988.0,1987.9,40.80754394]
[1742524307354,7.88679,1988.0,1987.9,41.61287394]
[1742524307554,4.67899,1988.0,1987.9,41.61287394]
[1742524307946,6.08789,1988.0,1987.9,41.61287394]
[1742524309855,6.08789,1988.0,1987.9,40.80754394]
[1742524310244,6.08789,1988.0,1987.9,42.09644394]
[1742524314560,6.08789,1988.0,1987.9,0.00754394]
[1742524318455,6.08789,1988.0,1987.9,1.36694394]
[1742524320060,6.08789,1988.0,1987.9,0.00754394]
[1742524324062,6.08789,1988.0,1987.9,1.31084394]
[1742524324859,6.08789,1988.0,1987.9,0.00754394]
[1742524325659,6.08789,1988.0,1987.9,40.80754394]
[1742524327158,6.08789,1988.0,1987.9,42.17644394]
[1742524328355,6.08789,1988.0,1987.9,1.37644394]
[1742524332359,6.08789,1988.0,1987.9,0.00754394]
[1742524334053,6.08789,1988.0,1987.9,1.41514394]
[1742524340870,6.08789,1988.0,1987.9,0.00754394]
[1742524344870,2.01343,1987.9,1986.9,5.22214]
[1742524345173,0.80553,1987.4,1987.3,2.0591]
[1742524345363,4.02553,1987.4,1987.3,2.0591]
[1742524345669,4.02553,1987.4,1987.3,42.8591]
[1742524346059,4.02553,1987.4,1987.3,43.5217]
[1742524349574,4.02553,1987.4,1987.3,2.7217]
[1742524350172,4.02553,1987.4,1987.3,43.5217]
[1742524350977,5.34713,1987.4,1987.3,43.5217]
[1742524352173,5.34713,1987.4,1987.3,42.8591]
[1742524352369,8.55493,1987.4,1987.3,42.8591]
[1742524352673,8.55493,1987.4,1987.3,42.1846]
[1742524352872,0.80557,1987.3,1987.2,0.00754394]
[1742524353074,2.78567,1987.3,1987.2,0.00754394]
[1742524353270,3.46867,1987.3,1987.2,0.00754394]
[1742524355878,0.8057,1987.0,1986.9,0.7006]
[1742524356175,7.2335,1987.0,1986.9,0.7006]
[1742524356372,7.2335,1987.0,1986.9,41.5006]
[1742524357166,7.2335,1987.0,1986.9,42.8563]
[1742524358273,7.8832,1987.0,1986.9,42.1557]
[1742524358579,8.5271,1987.0,1986.9,1.3557]
[1742524358976,8.5271,1987.0,1986.8,0.00754394]
[1742524358977,0.80574,1986.9,1986.8,0.00754394]
[1742524359191,2.14644,1986.9,1986.8,0.00754394]
[1742524361278,48.67944,1986.9,1986.8,0.00754394]
[1742524361478,51.17944,1986.9,1986.8,0.00754394]
[1742524362382,48.67944,1986.9,1986.8,0.00754394]
[1742524366078,51.90044,1986.9,1986.8,0.00754394]
[1742524366480,51.90044,1986.9,1986.8,1.38524394]
[1742524373182,48.67944,1986.9,1986.8,1.38524394]
[1742524373483,51.90144,1986.9,1986.8,1.38524394]
[1742524374985,50.56074,1986.9,1986.8,1.38524394]
[1742524376382,51.95274,1986.9,1986.8,1.38524394]
[1742524382592,51.95274,1986.9,1986.8,2.04864394]
[1742524383194,50.56074,1986.9,1986.8,2.04864394]
[1742524383598,51.84764,1986.9,1986.8,2.04864394]
[1742524384500,5.31464,1986.9,1986.8,2.04864394]
[1742524388000,2.09264,1986.9,1986.8,2.04864394]
[1742524388302,4.02674,1986.9,1986.8,2.04864394]
[1742524388797,0.80574,1986.9,1986.8,2.04864394]
[1742524388998,4.02674,1986.9,1986.8,2.04864394]
[1742524389812,5.34454,1986.9,1986.8,2.04864394]
[1742524394620,3.2078,1987.0,1986.8,4.54864394]
[1742524394807,0.8057,1987.0,1986.9,1.3711]
[1742524395211,0.8057,1987.0,1986.9,2.17684]
[1742524395417,2.094,1987.0,1986.9,2.17684]
[1742524396107,3.221,1987.1,1986.9,1.3711]
[1742524396313,4.02668,1987.1,1987.0,2.8684]
[1742524397116,0.80568,1987.1,1987.0,2.8684]
[1742524397419,4.02659,1987.3,1987.2,0.80558]
[1742524397610,0.80562,1987.2,1987.1,2.83483]
[1742524398818,5.351,1987.3,1987.2,0.80562]
[1742524399016,2.13,1987.3,1987.2,2.15202]
[1742524402619,1.3244,1987.3,1987.2,2.15202]
[1742524402817,3.21534394,1987.4,1987.3,0.80557]
[1742524403015,6.43634394,1987.4,1987.3,2.80847]
[1742524403513,3.21534394,1987.4,1987.3,2.80847]
[1742524404115,4.59804394,1987.4,1987.3,2.80847]
[1742524404320,5.40357394,1987.4,1987.3,2.80847]
[1742524404620,4.59804394,1987.4,1987.3,2.80847]
[1742524405827,5.40357394,1987.4,1987.3,2.80847]
[1742524406616,4.59804394,1987.4,1987.3,2.80847]
[1742524407017,5.40357394,1987.4,1987.3,2.80847]
[1742524407322,1.39024394,1987.4,1987.3,2.80847]
[1742524408819,0.00754394,1987.4,1987.3,2.80847]
[1742524409325,1.42064394,1987.4,1987.3,2.80847]
[1742524413321,0.00754394,1987.4,1987.3,2.80847]
[1742524413719,0.00754394,1987.4,1987.3,43.60847]
[1742524417224,0.70194394,1987.4,1987.3,43.60847]
[1742524417624,2.10474394,1987.4,1987.3,43.60847]
[1742524427131,0.8054,1987.8,1987.7,0.80537]
[1742524427326,7.2322,1987.8,1987.7,0.80537]
[1742524428422,7.2322,1987.8,1987.7,2.17927]
[1742524429530,4.0132,1987.8,1987.7,2.17927]
[1742524429832,7.2322,1987.8,1987.7,2.17927]
[1742524430233,8.592,1987.8,1987.7,2.17927]
[1742524432041,7.7866,1987.8,1987.7,2.17927]
[1742524432431,8.59197,1987.8,1987.7,2.17927]
[1742524433841,8.59197,1987.8,1987.7,1.3739]
[1742524436735,8.59197,1987.8,1987.7,2.17931]
[1742524440745,7.7866,1987.8,1987.7,2.17931]
[1742524441345,8.59197,1987.8,1987.7,2.17931]
[1742524442351,8.59197,1987.8,1987.7,1.3739]
[1742524443753,0.80548,1987.6,1987.5,0.80547]
[1742524443956,0.80548,1987.6,1987.5,2.13987]
[1742524444348,2.18848,1987.6,1987.5,2.13987]
[1742524446451,0.6744,1987.7,1987.6,0.80545]
[1742524446649,7.2322,1987.8,1987.7,0.80541]
[1742524446851,8.5514,1987.8,1987.7,1.47231]
[1742524447049,8.5514,1987.8,1987.7,2.88051]
[1742524448048,9.2396,1987.8,1987.7,2.88051]
[1742524448243,6.0206,1987.8,1987.7,2.88051]
[1742524451858,3.2078,1987.8,1987.7,2.88051]
[1742524452060,4.622,1987.8,1987.7,2.88051]
[1742524452754,5.42737,1987.8,1987.7,2.88051]
[1742524452963,4.622,1987.8,1987.7,2.88051]
[1742524456252,5.42737,1987.8,1987.7,2.88051]
[1742524456653,4.622,1987.8,1987.7,2.88051]
[1742524457768,5.42737,1987.8,1987.7,2.88051]
[1742524460860,4.622,1987.8,1987.7,2.88051]
[1742524461365,5.42737,1987.8,1987.7,1.4082]
[1742524464365,6.63546,1987.8,1987.4,0.6817]
[1742524464565,0.80549,1987.6,1987.5,1.4171]
[1742524465067,2.18419,1987.6,1987.5,1.4171]
[1742524467766,2.18419,1987.6,1987.5,2.22259]
[1742524468270,1.3787,1987.6,1987.5,2.22259]
[1742524468467,1.3787,1987.6,1987.5,2.90429]
[1742524470464,6.4258,1987.8,1987.7,0.80541]
[1742524470666,7.23117,1987.8,1987.7,0.80541]
[1742524471166,4.01317,1987.8,1987.7,1.44491]
[1742524471969,5.30027,1987.8,1987.7,1.44491]
[1742524473673,4.4949,1987.8,1987.7,1.44491]
[1742524475162,1.2871,1987.8,1987.7,1.44491]
[1742524475764,2.09247,1987.8,1987.7,1.44491]
[1742524475970,2.79357,1987.8,1987.7,1.44491]
[1742524476166,1.9882,1987.8,1987.7,1.44491]
[1742524477565,2.79357,1987.8,1987.7,1.44491]
[1742524477765,1.9882,1987.8,1987.7,1.44491]
[1742524477961,2.79357,1987.8,1987.7,1.44491]
[1742524479570,1.9882,1987.8,1987.7,1.44491]
[1742524482278,1.2871,1987.8,1987.7,1.44491]
[1742524483170,2.09247,1987.8,1987.7,1.44491]
[1742524485177,1.2871,1987.8,1987.7,1.44491]
[1742524485679,2.09247,1987.8,1987.7,1.44491]
[1742524487578,1.2871,1987.8,1987.7,1.44491]
[1742524489881,2.09247,1987.8,1987.7,0.80541]
[1742524490683,0.80545,1987.7,1987.6,0.80543]
[1742524490880,0.80545,1987.6,1987.5,2.15516]
[1742524491088,1.51315,1987.6,1987.5,2.15516]
[1742524491381,1.51315,1987.6,1987.5,1.3497]
[1742524491382,2.86905,1987.6,1987.5,1.3497]
[1742524491573,6.07685,1987.6,1987.5,1.3497]
[1742524491776,5.2714,1987.6,1987.3,40.8]
[1742524491974,0.80553,1987.4,1987.3,42.89977]
[1742524492370,2.79323,1987.4,1987.3,42.89977]
[1742524493086,2.79323,1987.4,1987.3,40.8]
[1742524495181,2.79323,1987.4,1987.3,42.0803]
[1742524495575,1.2852,1987.4,1987.3,42.88587]
[1742524495883,1.3492,1987.6,1987.3,42.0803]
[1742524496080,3.218,1987.7,1987.4,3.96697]
[1742524496383,1.3226,1987.6,1987.5,2.74339]
[1742524496581,0.6386,1987.8,1987.5,7.15937]
[1742524496781,1.3226,1987.8,1987.7,0.80541]
[1742524497179,1.3226,1987.8,1987.7,1.47831]
[1742524497582,2.12797,1987.8,1987.7,1.47831]
[1742524497991,1.3226,1987.8,1987.7,1.47831]
[1742524498185,2.12797,1987.8,1987.7,1.47831]
[1742524498686,2.12797,1987.8,1987.7,0.80541]
[1742524499386,0.80541,1987.7,1987.6,2.08572]
[1742524499583,1.2912,1987.7,1987.6,2.08572]
[1742524499787,2.09661,1987.7,1987.6,2.08572]
[1742524500883,1.2912,1987.7,1987.6,2.08572]
[1742524506289,5.31100394,1987.9,1987.8,0.80537]
[1742524507689,6.67710394,1987.9,1987.8,0.80537]
[1742524509989,2.65374394,1987.9,1987.8,0.80537]
[1742524510187,2.17897394,1987.9,1987.8,1.46977]
[1742524510387,2.17897394,1987.9,1987.8,2.13477]
[1742524510983,1.37364394,1987.9,1987.8,2.13477]
[1742524512192,2.17897394,1987.9,1987.8,2.13477]
[1742524512387,2.17897394,1987.9,1987.8,3.48167]
[1742524513002,50.53296,1988.4,1988.3,0.80517]
[1742524513292,53.74996,1988.4,1988.3,0.80517]
[1742524513493,7.22996,1988.4,1988.3,0.80517]